fUSD/lending_fUSD_20260614
["ID","MTS","AMOUNT","RATE_DAILY","PERIOD"]
[424989004,1781376651000,-470.91800503,0.00029819,7]
[424989001,1781376651000,-309.87667395,0.00029819,7]
[424989012,1781376651000,-458.79509805,0.00029819,7]
[424989003,1781376651000,-569.00209648,0.00029819,5]
[424989007,1781376651000,-379.07212413,0.00029819,7]
[424989005,1781376651000,-559.14931635,0.00029819,7]
[424989010,1781376651000,-311.32887557,0.00029819,7]
[424988999,1781376651000,-540.53760165,0.00029819,7]
[424989009,1781376651000,-326.75413773,0.00029819,7]
[424989006,1781376651000,-405.26570094,0.00029819,7]
[424988993,1781376651000,-310.30066637,0.00029819,7]
[424988980,1781376651000,-500.55671283,0.00029819,7]
[424988991,1781376651000,-459.48927729,0.00029819,2]
[424989008,1781376651000,-747.26706783,0.00029819,7]
[424988972,1781376651000,-401.91890087,0.00029817,7]
[424988973,1781376651000,-389.03964545,0.00029819,7]
[424988976,1781376651000,-388.24190832,0.00029819,7]
[424988974,1781376651000,-492.65220967,0.00029819,7]
[424988975,1781376651000,-475.18505844,0.00029819,7]
[424988978,1781376651000,-559.71295963,0.00029819,7]
[424988977,1781376651000,-540.46533533,0.00029819,7]
[424988990,1781376651000,-503.00787683,0.00029819,7]
[424988979,1781376651000,-727.79766544,0.00029819,7]
[424988983,1781376651000,-640.92786252,0.00029819,7]
[424988982,1781376651000,-405.85846173,0.00029819,7]
[424988985,1781376651000,-493.57188266,0.00029819,7]
[424988984,1781376651000,-556.19080222,0.00029819,7]
[424988986,1781376651000,-378.08391867,0.00029819,7]
[424988987,1781376651000,-508.57881747,0.00029819,7]
[424988989,1781376651000,-697.71953347,0.00029819,7]
[424988988,1781376651000,-502.2205273,0.00029819,7]
[424988981,1781376651000,-432.71735495,0.00029819,7]
[424989014,1781376651000,-569.04523811,0.00029819,7]
[424989022,1781376651000,-588.93433447,0.00029822,7]
[424989054,1781376651000,-324.57393367,0.00029832,7]
[424989046,1781376651000,-431.01662253,0.00029824,7]
[424989040,1781376651000,-343.85465998,0.00029824,7]
[424989038,1781376651000,-735.65814341,0.00029822,7]
[424989044,1781376651000,-163.8198606,0.00029824,7]
[424989039,1781376651000,-268.79245948,0.00029824,7]
[424989042,1781376651000,-166.736246,0.00029824,7]
[424989043,1781376651000,-424.23025585,0.00029824,7]
[424989047,1781376651000,-319.41871148,0.00029824,7]
[424989048,1781376651000,-405.39156805,0.00029824,7]
[424989055,1781376651000,-164.83011387,0.00029832,7]
[424989052,1781376651000,-429.67732108,0.00029831,7]
[424989056,1781376651000,-161.15912275,0.00029832,7]
[424989050,1781376651000,-375.28568826,0.00029824,7]
[424989049,1781376651000,-400.60689158,0.00029824,7]
[424989051,1781376651000,-400.83182403,0.00029824,7]
[424989057,1781376651000,-159.872,0.00029832,7]
[424989053,1781376651000,-164.551618,0.00029832,7]
[424989058,1781376651000,-330.62700308,0.00029832,7]
[424989015,1781376651000,-301.06914963,0.00029819,7]
[424989045,1781376651000,-302.07746651,0.00029824,7]
[424989037,1781376651000,-584.60212331,0.00029822,7]
[424989041,1781376651000,-213.73965842,0.00029824,7]
[424989028,1781376651000,-593.56784216,0.00029822,7]
[424989017,1781376651000,-523.30629523,0.00029819,7]
[424989016,1781376651000,-799.56623287,0.00029819,7]
[424989013,1781376651000,-747.50237721,0.00029819,2]
[424989023,1781376651000,-410.45103792,0.00029822,7]
[424989020,1781376651000,-385.35937279,0.00029822,7]
[424989036,1781376651000,-487.76764419,0.00029822,7]
[424989019,1781376651000,-440.41471502,0.00029819,7]
[424989021,1781376651000,-379.74918229,0.00029822,7]
[424989024,1781376651000,-520.34929344,0.00029822,7]
[424989035,1781376651000,-495.30955677,0.00029822,7]
[424989018,1781376651000,-747.60872312,0.00029819,7]
[424989034,1781376651000,-460.74749091,0.00029822,7]
[424989033,1781376651000,-325.20255809,0.00029822,7]
[424989025,1781376651000,-542.27514976,0.00029822,7]
[424989032,1781376651000,-470.54187514,0.00029822,7]
[424989030,1781376651000,-568.66131052,0.00029822,7]
[424989026,1781376651000,-376.52988369,0.00029822,7]
[424989029,1781376651000,-599.91681051,0.00029822,7]
[424989027,1781376651000,-542.07056648,0.00029822,7]
[424989031,1781376651000,-800.98918164,0.00029822,7]
[424989095,1781376652000,-160.77836687,0.00029832,7]
[424989096,1781376652000,-320.13445775,0.00029832,7]
[424989097,1781376652000,-169.49602715,0.00029832,7]
[424989094,1781376652000,-165.65661138,0.00029832,7]
[424989090,1781376652000,-178.54311152,0.00029832,2]
[424989088,1781376652000,-168.69662438,0.00029832,7]
[424989091,1781376652000,-170.54456752,0.00029832,7]
[424989085,1781376652000,-401.71014768,0.00029832,7]
[424989087,1781376652000,-165.93890331,0.00029832,7]
[424989093,1781376652000,-169.24473519,0.00029832,7]
[424989089,1781376652000,-213.27342902,0.00029832,7]
[424989099,1781376652000,-160.2092338,0.00029832,7]
[424989106,1781376652000,-173.60860719,0.00029832,7]
[424989098,1781376652000,-406.04429749,0.00029832,7]
[424989100,1781376652000,-341.76518929,0.00029832,7]
[424989101,1781376652000,-159.8816,0.00029832,7]
[424989102,1781376652000,-160.27416082,0.00029832,7]
[424989104,1781376652000,-441.25321145,0.00029832,7]
[424989107,1781376652000,-159.872,0.00029832,2]
[424989115,1781376652000,-165.47827433,0.00029832,7]
[424989110,1781376652000,-447.64245333,0.00029832,7]
[424989114,1781376652000,-159.8736,0.00029832,7]
[424989113,1781376652000,-200.3425638,0.00029832,7]
[424989083,1781376652000,-432.30306615,0.00029832,7]
[424989103,1781376652000,-331.80488127,0.00029832,7]
[424989086,1781376652000,-316.1098839,0.00029832,7]
[424989063,1781376652000,-347.46988013,0.00029832,7]
[424989082,1781376652000,-160.91014257,0.00029832,7]
[424989059,1781376652000,-430.79838781,0.00029832,7]
[424989060,1781376652000,-427.734298,0.00029832,7]
[424989062,1781376652000,-412.54147123,0.00029832,7]
[424989067,1781376652000,-210.28951832,0.00029832,7]
[424989061,1781376652000,-443.68780695,0.00029832,7]
[424989065,1781376652000,-385.48839883,0.00029832,7]
[424989069,1781376652000,-260.18904689,0.00029832,7]
[424989064,1781376652000,-165.36702804,0.00029832,2]
[424989066,1781376652000,-159.8736,0.00029832,7]
[424989068,1781376652000,-159.8738,0.00029832,7]
[424989071,1781376652000,-159.8848,0.00029832,7]
[424989074,1781376652000,-159.8736,0.00029832,7]
[424989070,1781376652000,-159.8848,0.00029832,7]
[424989073,1781376652000,-159.8784,0.00029832,7]
[424989072,1781376652000,-159.88,0.00029832,7]
[424989077,1781376652000,-159.8736,0.00029832,7]
[424989079,1781376652000,-159.8864,0.00029832,7]
[424989078,1781376652000,-159.88012,0.00029832,7]
[424989075,1781376652000,-159.8736,0.00029832,7]
[424989080,1781376652000,-169.26859293,0.00029832,7]
[424989076,1781376652000,-159.8736,0.00029832,7]
[424989081,1781376652000,-159.88,0.00029832,7]
[424989092,1781376652000,-168.32312352,0.00029832,7]
[424989084,1781376652000,-171.19795644,0.00029832,7]
[424989108,1781376652000,-199.85800027,0.00029832,7]
[424989121,1781376652000,-276.19,0.0002987,2]
[424989116,1781376652000,-166.92599094,0.00029832,7]
[424989139,1781376652000,-334.61802851,0.000299,2]
[424989149,1781376652000,-1778.3,0.00029999,120]
[424989141,1781376652000,-334.61802851,0.000299,2]
[424989143,1781376652000,-334.61802851,0.000299,2]
[424989144,1781376652000,-334.61802851,0.000299,2]
[424989142,1781376652000,-334.61802851,0.000299,2]
[424989145,1781376652000,-334.61802851,0.000299,2]
[424989146,1781376652000,-334.61802851,0.000299,2]
[424989151,1781376652000,-50000.0,0.0003,2]
[424989155,1781376652000,-19150.94854924,0.0003,7]
[424989153,1781376652000,-10000.0,0.0003,120]
[424989148,1781376652000,-1778.3,0.00029999,120]
[424989157,1781376652000,-34500.0,0.0003,20]
[424989154,1781376652000,-19150.94854924,0.0003,7]
[424989160,1781376652000,-8496.48,0.0003,2]
[424989162,1781376652000,-2107.96727871,0.0003,2]
[424989159,1781376652000,-2499.99,0.0003,2]
[424989156,1781376652000,-113502.45911333,0.0003,7]
[424989161,1781376652000,-12152.53,0.0003,2]
[424989152,1781376652000,-254.29847873,0.0003,7]
[424989164,1781376652000,-25000.0,0.0003,2]
[424989166,1781376652000,-454.89755562,0.0003,2]
[424989163,1781376652000,-4821.85272129,0.0003,2]
[424989111,1781376652000,-301.71095471,0.00029832,7]
[424989158,1781376652000,-650.0,0.0003,2]
[424989150,1781376652000,-150.0,0.00029999,20]
[424989147,1781376652000,-334.61802851,0.000299,2]
[424989134,1781376652000,-334.61802851,0.000299,2]
[424989112,1781376652000,-200.34120032,0.00029832,7]
[424989109,1781376652000,-159.88482,0.00029832,7]
[424989140,1781376652000,-334.61802851,0.000299,2]
[424989118,1781376652000,-305.6699823,0.00029832,7]
[424989119,1781376652000,-422.99116523,0.00029832,7]
[424989120,1781376652000,-7000.0,0.00029863,2]
[424989117,1781376652000,-162.39162754,0.00029832,7]
[424989122,1781376652000,-157.61,0.0002987,2]
[424989127,1781376652000,-214.64,0.0002987,2]
[424989124,1781376652000,-506.03,0.0002987,2]
[424989165,1781376652000,-12500.0,0.0003,2]
[424989125,1781376652000,-157.61,0.0002987,2]
[424989105,1781376652000,-159.8832,0.00029832,7]
[424989126,1781376652000,-243.7,0.0002987,2]
[424989136,1781376652000,-334.61802851,0.000299,2]
[424989138,1781376652000,-334.61802851,0.000299,2]
[424989137,1781376652000,-334.61802851,0.000299,2]
[424989130,1781376652000,-334.6180287,0.000299,2]
[424989133,1781376652000,-334.61802851,0.000299,2]
[424989132,1781376652000,-334.61802851,0.000299,2]
[424989135,1781376652000,-334.61802851,0.000299,2]
[424989131,1781376652000,-334.61802851,0.000299,2]
[424989128,1781376652000,-194.39,0.0002987,2]
[424989129,1781376652000,-184.13710532,0.000299,2]
[424989123,1781376652000,-685.85,0.0002987,2]
[424989167,1781376653000,-1189.88512159,0.00016487,2]
[424989170,1781377186000,-150.0,0.0001479,2]
[424989169,1781377186000,-250.0,0.00014,2]
[424989172,1781377186000,-151.0,0.00014899,2]
[424989171,1781377186000,-151.0,0.00014899,2]
[424989176,1781377186000,-152.0,0.00014899,2]
[424989175,1781377186000,-153.0,0.00014899,2]
[424989174,1781377186000,-151.0,0.00014899,2]
[424989177,1781377186000,-197.71326566,0.00014899,2]
[424989178,1781377186000,-152.0,0.00014899,2]
[424989173,1781377186000,-151.0,0.00014899,2]
[424989179,1781377187000,-150.0,0.000149,2]
[424989180,1781377187000,-150.0,0.000149,2]
[424989188,1781377187000,-2500.0,0.00014979,2]
[424989181,1781377187000,-152.0,0.000149,2]
[424989183,1781377187000,-197.71326566,0.000149,2]
[424989184,1781377187000,-1500.76558571,0.000149,2]
[424989186,1781377187000,-600.0,0.00014949,2]
[424989187,1781377187000,-150.0,0.00014978,2]
[424989185,1781377187000,-2500.0,0.00014949,2]
[424989189,1781377187000,-2500.0,0.00014979,2]
[424989182,1781377187000,-150.0,0.000149,2]
[424989191,1781377187000,-600.0,0.00014979,2]
[424989192,1781377187000,-600.0,0.00014979,2]
[424989194,1781377187000,-152.0,0.00014999,2]
[424989193,1781377187000,-600.0,0.00014979,2]
[424989195,1781377187000,-151.0,0.00014999,2]
[424989196,1781377187000,-152.0,0.00014999,2]
[424989197,1781377187000,-151.0,0.00014999,2]
[424989199,1781377187000,-150.0,0.00015,2]
[424989198,1781377187000,-101928.97254318,0.00015,2]
[424989200,1781377187000,-35892.47549711,0.00015,2]
[424989190,1781377187000,-2500.0,0.00014979,2]
[424989202,1781377651000,-151.0,0.00015107,2]
[424989205,1781377651000,-150.0,0.00015107,2]
[424989203,1781377651000,-151.0,0.00015107,2]
[424989206,1781377651000,-151.0,0.00015107,2]
[424989201,1781377651000,-197.71326568,0.00015007,2]
[424989209,1781377651000,-150.0,0.00015107,2]
[424989208,1781377651000,-151.0,0.00015107,2]
[424989207,1781377651000,-151.0,0.00015107,2]
[424989210,1781377651000,-73.73714865,0.00015107,2]
[424989204,1781377651000,-150.0,0.00015107,2]
[424989234,1781377832000,-151.0,0.00015107,2]
[424989232,1781377832000,-151.0,0.00015107,2]
[424989231,1781377832000,-151.0,0.00015107,2]
[424989220,1781377832000,-150.0,0.00015107,2]
[424989227,1781377832000,-151.0,0.00015107,2]
[424989228,1781377832000,-151.0,0.00015107,2]
[424989225,1781377832000,-152.0,0.00015107,2]
[424989223,1781377832000,-152.0,0.00015107,2]
[424989226,1781377832000,-152.0,0.00015107,2]
[424989224,1781377832000,-150.0,0.00015107,2]
[424989222,1781377832000,-151.0,0.00015107,2]
[424989221,1781377832000,-153.0,0.00015107,2]
[424989219,1781377832000,-150.0,0.00015107,2]
[424989218,1781377832000,-151.0,0.00015107,2]
[424989217,1781377832000,-151.0,0.00015107,2]
[424989216,1781377832000,-77.26285135,0.00015107,2]
[424989239,1781377832000,-266.56595387,0.00015107,2]
[424989229,1781377832000,-150.0,0.00015107,2]
[424989240,1781377832000,-232.50837531,0.00015107,2]
[424989230,1781377832000,-150.0,0.00015107,2]
[424989233,1781377832000,-152.0,0.00015107,2]
[424989235,1781377832000,-151.0,0.00015107,2]
[424989255,1781377832000,-500.0,0.00015251,2]
[424989254,1781377832000,-2994.15150292,0.00015251,2]
[424989251,1781377832000,-151.0,0.00015114,2]
[424989252,1781377832000,-151.0,0.00015114,2]
[424989250,1781377832000,-152.0,0.00015109,2]
[424989248,1781377832000,-150.0,0.00015108,2]
[424989247,1781377832000,-151.0,0.00015108,2]
[424989249,1781377832000,-600.0,0.00015108,2]
[424989253,1781377832000,-151.0,0.00015135,2]
[424989246,1781377832000,-2500.0,0.00015108,2]
[424989244,1781377832000,-1997.51817368,0.00015108,2]
[424989245,1781377832000,-502.48182632,0.00015108,2]
[424989241,1781377832000,-367.49162469,0.00015107,2]
[424989242,1781377832000,-131.68914901,0.00015107,2]
[424989237,1781377832000,-384.366,0.00015107,2]
[424989238,1781377832000,-300.0,0.00015107,2]
[424989243,1781377832000,-18.31085099,0.00015107,2]
[424989236,1781377832000,-1549.06804613,0.00015107,2]
[424989284,1781377838000,-317.0,0.0001592,2]
[424989283,1781377838000,-312.0,0.0001592,2]
[424989285,1781377838000,-151.0,0.0001592,2]
[424989287,1781377838000,-319.0,0.0001592,2]
[424989290,1781377838000,-271.84071722,0.0001592,2]
[424989294,1781377838000,-317.0,0.0001592,2]
[424989289,1781377838000,-152.0,0.0001592,2]
[424989293,1781377838000,-321.0,0.0001592,2]
[424989291,1781377838000,-45.15928278,0.0001592,2]
[424989288,1781377838000,-319.0,0.0001592,2]
[424989286,1781377838000,-312.0,0.0001592,2]
[424989282,1781377838000,-318.0,0.0001592,2]
[424989292,1781377838000,-312.0,0.0001592,2]
[424989281,1781377838000,-151.0,0.0001592,2]
[424989266,1781377838000,-1662.22928278,0.00015251,2]
[424989278,1781377838000,-315.0,0.0001592,2]
[424989280,1781377838000,-311.0,0.0001592,2]
[424989274,1781377838000,-310.0,0.0001592,2]
[424989275,1781377838000,-310.0,0.0001592,2]
[424989276,1781377838000,-151.0,0.0001592,2]
[424989277,1781377838000,-313.0,0.0001592,2]
[424989273,1781377838000,-151.0,0.0001592,2]
[424989267,1781377838000,-150.0,0.00015257,2]
[424989268,1781377838000,-150.0,0.00015409,2]
[424989272,1781377838000,-150.0,0.00015862,2]
[424989270,1781377838000,-150.0,0.0001556,2]
[424989269,1781377838000,-1252.93,0.00015465,2]
[424989271,1781377838000,-150.0,0.00015711,2]
[424989296,1781377838000,-316.0,0.0001592,2]
[424989279,1781377838000,-311.0,0.0001592,2]
[424989305,1781377838000,-311.0,0.0001592,2]
[424989318,1781377838000,-311.0,0.0001592,2]
[424989307,1781377838000,-313.0,0.0001592,2]
[424989306,1781377838000,-312.0,0.0001592,2]
[424989327,1781377838000,-237.46400564,0.00016518,2]
[424989323,1781377838000,-150.9,0.00016438,2]
[424989326,1781377838000,-150.0,0.00016488,2]
[424989324,1781377838000,-204.0,0.00016466,2]
[424989325,1781377838000,-500.0,0.00016488,2]
[424989322,1781377838000,-150.0,0.00016315,2]
[424989321,1781377838000,-150.0,0.00016164,2]
[424989320,1781377838000,-150.0,0.00016013,2]
[424989328,1781377838000,-682.24,0.00016518,2]
[424989319,1781377838000,-300.0,0.00016,2]
[424989314,1781377838000,-316.0,0.0001592,2]
[424989315,1781377838000,-313.0,0.0001592,2]
[424989313,1781377838000,-151.0,0.0001592,2]
[424989316,1781377838000,-310.0,0.0001592,2]
[424989317,1781377838000,-151.0,0.0001592,2]
[424989295,1781377838000,-152.0,0.0001592,2]
[424989298,1781377838000,-318.0,0.0001592,2]
[424989302,1781377838000,-319.0,0.0001592,2]
[424989310,1781377838000,-312.0,0.0001592,2]
[424989304,1781377838000,-151.0,0.0001592,2]
[424989300,1781377838000,-313.0,0.0001592,2]
[424989303,1781377838000,-321.0,0.0001592,2]
[424989299,1781377838000,-151.0,0.0001592,2]
[424989301,1781377838000,-320.0,0.0001592,2]
[424989309,1781377838000,-309.0,0.0001592,2]
[424989308,1781377838000,-152.0,0.0001592,2]
[424989311,1781377838000,-314.0,0.0001592,2]
[424989312,1781377838000,-316.0,0.0001592,2]
[424989297,1781377838000,-317.0,0.0001592,2]
[424989338,1781377840000,-707.0,0.00016518,2]
[424989337,1781377840000,-3137.59697326,0.00016518,2]
[424989360,1781377843000,-300.0,0.00016618,2]
[424989349,1781377843000,-1456.084852,0.00016518,2]
[424989350,1781377843000,-16125.43118,0.00016518,2]
[424989358,1781377843000,-195.0,0.00016618,2]
[424989356,1781377843000,-7282.3683891,0.00016518,2]
[424989359,1781377843000,-2500.0,0.00016618,2]
[424989361,1781377843000,-600.0,0.00016618,2]
[424989363,1781377843000,-195.0,0.00016618,2]
[424989362,1781377843000,-195.0,0.00016618,2]
[424989367,1781377843000,-2500.0,0.00016618,2]
[424989357,1781377843000,-600.0,0.00016618,2]
[424989368,1781377843000,-1500.00000003,0.00017122,2]
[424989365,1781377843000,-233.52394448,0.00016618,2]
[424989364,1781377843000,-195.0,0.00016618,2]
[424989366,1781377843000,-600.0,0.00016618,2]
[424989369,1781377843000,-350.0,0.00018,2]
[424989410,1781377844000,-500.0,0.00021999,2]
[424989407,1781377844000,-5000.0,0.00021918,2]
[424989405,1781377844000,-1252.93,0.00021651,2]
[424989404,1781377844000,-657.23,0.0002152,2]
[424989403,1781377844000,-166.66,0.00021213,2]
[424989406,1781377844000,-5156.3807857,0.0002186,2]
[424989409,1781377844000,-500.0,0.00021999,2]
[424989402,1781377844000,-657.23,0.00021031,2]
[424989399,1781377844000,-156.0,0.00021,2]
[424989401,1781377844000,-169.0,0.00021,2]
[424989408,1781377844000,-150.0,0.00021918,2]
[424989412,1781377844000,-1481.91,0.00021999,2]
[424989417,1781377844000,-8320.3,0.00022,10]
[424989419,1781377844000,-176.0,0.00022,2]
[424989413,1781377844000,-500.0,0.00021999,2]
[424989416,1781377844000,-10000.0,0.00022,10]
[424989414,1781377844000,-10000.0,0.00022,10]
[424989418,1781377844000,-450.0,0.00022,2]
[424989415,1781377844000,-10000.0,0.00022,10]
[424989421,1781377844000,-698.0,0.00022,2]
[424989430,1781377844000,-151.0,0.00022054,2]
[424989420,1781377844000,-599.0,0.00022,2]
[424989422,1781377844000,-151.0,0.00022,2]
[424989423,1781377844000,-233.0,0.00022,2]
[424989400,1781377844000,-410.0,0.00021,2]
[424989411,1781377844000,-500.0,0.00021999,2]
[424989398,1781377844000,-233.0,0.00021,2]
[424989374,1781377844000,-166.66,0.00019597,2]
[424989392,1781377844000,-657.23,0.00020542,2]
[424989370,1781377844000,-2000.0,0.0001813,2]
[424989372,1781377844000,-166.66,0.00019193,2]
[424989371,1781377844000,-150.9,0.0001841,2]
[424989384,1781377844000,-156.0,0.0002,2]
[424989424,1781377844000,-410.0,0.00022,2]
[424989378,1781377844000,-400.0,0.0002,2]
[424989377,1781377844000,-500.0,0.00019999,2]
[424989376,1781377844000,-1251.39,0.0001995,2]
[424989379,1781377844000,-176.0,0.0002,2]
[424989375,1781377844000,-200.0,0.00019803,2]
[424989381,1781377844000,-698.0,0.0002,2]
[424989382,1781377844000,-151.0,0.0002,2]
[424989383,1781377844000,-233.0,0.0002,2]
[424989380,1781377844000,-599.0,0.0002,2]
[424989385,1781377844000,-410.0,0.0002,2]
[424989386,1781377844000,-169.0,0.0002,2]
[424989388,1781377844000,-657.23,0.00020053,2]
[424989387,1781377844000,-166.66,0.00020001,2]
[424989389,1781377844000,-162.78,0.00020102,2]
[424989390,1781377844000,-150.9,0.00020381,2]
[424989391,1781377844000,-166.66,0.00020405,2]
[424989397,1781377844000,-151.0,0.00021,2]
[424989393,1781377844000,-166.66,0.00020809,2]
[424989395,1781377844000,-599.0,0.00021,2]
[424989394,1781377844000,-176.0,0.00021,2]
[424989396,1781377844000,-698.0,0.00021,2]
[424989428,1781377844000,-151.0,0.00022054,2]
[424989373,1781377844000,-657.23,0.00019564,2]
[424989425,1781377844000,-169.0,0.00022,2]
[424989462,1781377844000,-151.0,0.00022054,2]
[424989459,1781377844000,-151.0,0.00022054,2]
[424989463,1781377844000,-151.0,0.00022054,2]
[424989460,1781377844000,-500.0,0.00022054,2]
[424989461,1781377844000,-151.0,0.00022054,2]
[424989464,1781377844000,-151.0,0.00022054,2]
[424989466,1781377844000,-151.0,0.00022054,2]
[424989465,1781377844000,-151.0,0.00022054,2]
[424989476,1781377844000,-599.0,0.00023,2]
[424989477,1781377844000,-698.0,0.00023,2]
[424989471,1781377844000,-423.67485632,0.00022407,2]
[424989467,1781377844000,-500.0,0.00022054,2]
[424989455,1781377844000,-151.0,0.00022054,2]
[424989475,1781377844000,-176.0,0.00023,2]
[424989470,1781377844000,-150.9,0.00022353,2]
[424989474,1781377844000,-1356.0,0.00022991,7]
[424989468,1781377844000,-500.0,0.00022054,2]
[424989473,1781377844000,-423.67485631,0.00022407,2]
[424989469,1781377844000,-185.55,0.00022138,2]
[424989478,1781377844000,-151.0,0.00023,2]
[424989480,1781377844000,-410.0,0.00023,2]
[424989481,1781377844000,-169.0,0.00023,2]
[424989483,1781377844000,-500.0,0.0002368,2]
[424989484,1781377844000,-500.0,0.00024,2]
[424989479,1781377844000,-233.0,0.00023,2]
[424989429,1781377844000,-151.0,0.00022054,2]
[424989472,1781377844000,-423.67485631,0.00022407,2]
[424989457,1781377844000,-500.0,0.00022054,2]
[424989482,1781377844000,-150.0,0.00023014,2]
[424989454,1781377844000,-500.0,0.00022054,2]
[424989427,1781377844000,-151.0,0.00022054,2]
[424989426,1781377844000,-300.0,0.00022,7]
[424989439,1781377844000,-151.0,0.00022054,2]
[424989434,1781377844000,-151.0,0.00022054,2]
[424989437,1781377844000,-500.0,0.00022054,2]
[424989433,1781377844000,-151.0,0.00022054,2]
[424989432,1781377844000,-151.0,0.00022054,2]
[424989456,1781377844000,-151.0,0.00022054,2]
[424989431,1781377844000,-151.0,0.00022054,2]
[424989436,1781377844000,-151.0,0.00022054,2]
[424989435,1781377844000,-151.0,0.00022054,2]
[424989438,1781377844000,-151.0,0.00022054,2]
[424989441,1781377844000,-151.0,0.00022054,2]
[424989440,1781377844000,-500.0,0.00022054,2]
[424989442,1781377844000,-151.0,0.00022054,2]
[424989443,1781377844000,-500.0,0.00022054,2]
[424989453,1781377844000,-151.0,0.00022054,2]
[424989451,1781377844000,-500.0,0.00022054,2]
[424989458,1781377844000,-151.0,0.00022054,2]
[424989450,1781377844000,-151.0,0.00022054,2]
[424989452,1781377844000,-151.0,0.00022054,2]
[424989449,1781377844000,-500.0,0.00022054,2]
[424989446,1781377844000,-500.0,0.00022054,2]
[424989445,1781377844000,-151.0,0.00022054,2]
[424989444,1781377844000,-151.0,0.00022054,2]
[424989448,1781377844000,-151.0,0.00022054,2]
[424989447,1781377844000,-151.0,0.00022054,2]
[424989525,1781377845000,-578.20924308,0.00025362,2]
[424989523,1781377845000,-154.92,0.00025052,7]
[424989519,1781377845000,-234.0,0.00025,2]
[424989522,1781377845000,-157.56,0.00025,2]
[424989516,1781377845000,-601.0,0.00025,2]
[424989514,1781377845000,-56288.56973458,0.00025,7]
[424989517,1781377845000,-715.0,0.00025,2]
[424989518,1781377845000,-156.0,0.00025,2]
[424989520,1781377845000,-422.0,0.00025,2]
[424989521,1781377845000,-169.0,0.00025,2]
[424989534,1781377845000,-500.0,0.00025362,2]
[424989537,1781377845000,-500.0,0.00025362,2]
[424989526,1781377845000,-151.0,0.00025362,2]
[424989533,1781377845000,-500.0,0.00025362,2]
[424989529,1781377845000,-500.0,0.00025362,2]
[424989527,1781377845000,-500.0,0.00025362,2]
[424989524,1781377845000,-151.0,0.00025362,2]
[424989532,1781377845000,-152.0,0.00025362,2]
[424989531,1781377845000,-500.0,0.00025362,2]
[424989530,1781377845000,-152.0,0.00025362,2]
[424989535,1781377845000,-500.0,0.00025362,2]
[424989536,1781377845000,-152.0,0.00025362,2]
[424989546,1781377845000,-151.0,0.00025527,2]
[424989515,1781377845000,-176.0,0.00025,2]
[424989528,1781377845000,-500.0,0.00025362,2]
[424989512,1781377845000,-3644.0,0.00024943,2]
[424989499,1781377845000,-1000.0,0.00024658,2]
[424989508,1781377845000,-3557.0,0.00024932,2]
[424989538,1781377845000,-152.0,0.00025362,2]
[424989486,1781377845000,-599.0,0.00024,2]
[424989485,1781377845000,-176.0,0.00024,2]
[424989487,1781377845000,-698.0,0.00024,2]
[424989488,1781377845000,-151.0,0.00024,2]
[424989490,1781377845000,-2340.0,0.00024,7]
[424989489,1781377845000,-233.0,0.00024,2]